{"text_format":"3","workbook":"xlsx","n_sheets":1,"sheets":["Протокол ШЭ ВОШ по предмету"],"not_rendered":{"external_links":2,"defined_names":1},"read":"whole","date_system":"1900"}

{"sheet":"Протокол ШЭ ВОШ по предмету","index":0,"n_rows":90,"n_cols":15,"rows_kept":90}
["№","Фамилия","Имя","Отчество","Дата рождения","Пол","Участник с ОВЗ (да/нет)","Класс обучения","Класс участия","Балл","Максимальный балл","Статус","Призёр муниципального этапа прошлого года","ФИО учителя","Место работы учителя"]
[1,"Чуплина","Анастасия","Валерьевна",{"$f":"[2]шаблон!$M$686","v":"2009-10-14"},"ж",{"$f":"$G$5","v":"нет"},7,7,8,30,{"$f":"$L$5","v":"Участник"},"нет",{"$f":"$N$25","v":"Юртаев Алексей Игоревич"},"Муниципальное бюджетное общеобразовательное учреждение \"Средняя общеобразовательная школа № 27 с углубленным изучением отдельных предметов\" Нижнекамского муниципального района  Республики Татарстан"]
[2,"Трифонова","Любоь","Владимировна",{"$f":"[2]шаблон!$M$683","v":"2009-07-03"},"ж","нет",7,7,4,30,"Участник",{"$f":"$M$2","v":"нет"},"Юртаев Алексей Игоревич","Муниципальное бюджетное общеобразовательное учреждение \"Средняя общеобразовательная школа № 27 с углубленным изучением отдельных предметов\" Нижнекамского муниципального района  Республики Татарстан"]
[3,"Шадрухина","Софья","Олеговна",{"$f":"[2]шаблон!$M$685","v":"2009-02-24"},"ж","нет",7,7,0,30,"Участник","нет","Юртаев Алексей Игоревич","Муниципальное бюджетное общеобразовательное учреждение \"Средняя общеобразовательная школа № 27 с углубленным изучением отдельных предметов\" Нижнекамского муниципального района  Республики Татарстан"]
[4,"Аманжулова","Анастасия","Маратовна","2008-03-15","ж","нет",8,8,13,{"$f":"$K$2","v":30},"Участник","нет","Гадиуллин Булат Наильевич","Муниципальное бюджетное общеобразовательное учреждение \"Средняя общеобразовательная школа № 27 с углубленным изучением отдельных предметов\" Нижнекамского муниципального района  Республики Татарстан"]
[5,"Камалова","Диана","Ильнаровна","2008-02-15","ж",{"$f":"$G$5","v":"нет"},8,8,18,30,"участник","нет",{"$f":"$N$5","v":"Гадиуллин Булат Наильевич"},"Муниципальное бюджетное общеобразовательное учреждение \"Средняя общеобразовательная школа № 27 с углубленным изучением отдельных предметов\" Нижнекамского муниципального района  Республики Татарстан"]
[6,"Максимов","Роман","Денисович","2008-07-11","м","нет",8,8,20,30,"призер","нет",{"$f":"$N$5","v":"Гадиуллин Булат Наильевич"},"Муниципальное бюджетное общеобразовательное учреждение \"Средняя общеобразовательная школа № 27 с углубленным изучением отдельных предметов\" Нижнекамского муниципального района  Республики Татарстан"]
[7,"Зиганшин","Артур","Ильнарович","2008-08-18","м","нет",8,8,20,30,"призер","нет",{"$f":"$N$5","v":"Гадиуллин Булат Наильевич"},"Муниципальное бюджетное общеобразовательное учреждение \"Средняя общеобразовательная школа № 27 с углубленным изучением отдельных предметов\" Нижнекамского муниципального района  Республики Татарстан"]
[8,"Томина","Александра","Владиславовна","2008-01-11","ж","нет",8,8,18,30,{"$f":"$L$6","v":"участник"},"нет",{"$f":"$N$5","v":"Гадиуллин Булат Наильевич"},"Муниципальное бюджетное общеобразовательное учреждение \"Средняя общеобразовательная школа № 27 с углубленным изучением отдельных предметов\" Нижнекамского муниципального района  Республики Татарстан"]
[9,"Морозов","Тимофей","Михайлович","2008-06-16","м","нет",8,8,18,30,"участник","нет",{"$f":"$N$5","v":"Гадиуллин Булат Наильевич"},"Муниципальное бюджетное общеобразовательное учреждение \"Средняя общеобразовательная школа № 27 с углубленным изучением отдельных предметов\" Нижнекамского муниципального района  Республики Татарстан"]
[10,"Зарипова","Зарина","Радиковна","2007-12-01","ж","нет",8,8,19,30,"участник","нет",{"$f":"$N$5","v":"Гадиуллин Булат Наильевич"},"Муниципальное бюджетное общеобразовательное учреждение \"Средняя общеобразовательная школа № 27 с углубленным изучением отдельных предметов\" Нижнекамского муниципального района  Республики Татарстан"]
[11,"Пискарев ","Савва","Иванович","2008-04-07","м","нет",8,8,19,30,"участник","нет",{"$f":"$N$5","v":"Гадиуллин Булат Наильевич"},"Муниципальное бюджетное общеобразовательное учреждение \"Средняя общеобразовательная школа № 27 с углубленным изучением отдельных предметов\" Нижнекамского муниципального района  Республики Татарстан"]
[12,"Бердникова","дарья","Александровна","2008-10-14","ж","нет",8,8,25,30,"победитель","нет",{"$f":"$N$5","v":"Гадиуллин Булат Наильевич"},"Муниципальное бюджетное общеобразовательное учреждение \"Средняя общеобразовательная школа № 27 с углубленным изучением отдельных предметов\" Нижнекамского муниципального района  Республики Татарстан"]
[13,"Мещанова","Полина","Андреевна",{"$f":"[2]шаблон!$M$776","v":"2008-07-08"},"ж","нет",8,8,23,30,"призер","нет",{"$f":"$N$13","v":"Гадиуллин Булат Наильевич"},{"$f":"$O$13","v":"Муниципальное бюджетное общеобразовательное учреждение \"Средняя общеобразовательная школа № 27 с углубленным изучением отдельных предметов\" Нижнекамского муниципального района  Республики Татарстан"}]
[14,"Князев","леонид","Сергеевич",{"$f":"[2]шаблон!$M$776","v":"2008-07-08"},"м","нет",8,8,20,30,{"$f":"$L$6","v":"участник"},"нет",{"$f":"$N$13","v":"Гадиуллин Булат Наильевич"},"Муниципальное бюджетное общеобразовательное учреждение \"Средняя общеобразовательная школа № 27 с углубленным изучением отдельных предметов\" Нижнекамского муниципального района  Республики Татарстан"]
[15,"Котов","Арсений","Игоревич",{"$f":"[2]шаблон!$M$776","v":"2008-07-08"},"м","нет",8,8,18,30,"участник","нет",{"$f":"$N$13","v":"Гадиуллин Булат Наильевич"},"Муниципальное бюджетное общеобразовательное учреждение \"Средняя общеобразовательная школа № 27 с углубленным изучением отдельных предметов\" Нижнекамского муниципального района  Республики Татарстан"]
[16,"Ишманова","Индира","Ильнаровна",{"$f":"[1]шаблон!$M$11","v":"2008-04-01"},"ж","нет",8,8,11,30,"участник","нет","Гадиуллин Булат Наильевич","Муниципальное бюджетное общеобразовательное учреждение \"Средняя общеобразовательная школа № 27 с углубленным изучением отдельных предметов\" Нижнекамского муниципального района  Республики Татарстан"]
[17,"Зиатдинов","Булат","Айратович",{"$f":"[1]шаблон!$M$8","v":"2008-01-13"},"м","нет",8,8,13,30,"участник","нет","Гадиуллин Булат Наильевич","Муниципальное бюджетное общеобразовательное учреждение \"Средняя общеобразовательная школа № 27 с углубленным изучением отдельных предметов\" Нижнекамского муниципального района  Республики Татарстан"]
[18,"Смотров","Алексей","Витальевич",{"$f":"[1]шаблон!$M$8","v":"2008-01-13"},"м","нет",8,8,12,30,"участник","нет","Гадиуллин Булат Наильевич","Муниципальное бюджетное общеобразовательное учреждение \"Средняя общеобразовательная школа № 27 с углубленным изучением отдельных предметов\" Нижнекамского муниципального района  Республики Татарстан"]
[19,"Нуреева","Камилла","Дамировна",{"$f":"[2]шаблон!$M$784","v":"2008-11-21"},"ж","нет",8,8,19,30,"участник","нет","Гадиуллин Булат Наильевич","Муниципальное бюджетное общеобразовательное учреждение \"Средняя общеобразовательная школа № 27 с углубленным изучением отдельных предметов\" Нижнекамского муниципального района  Республики Татарстан"]
[20,"Пятибратова","Илона","Романовна","2006-11-12","ж","нет",9,9,1,30,{"$f":"$L$20","v":"участник"},{"$f":"$M$20","v":"нет"},"Юртаев Алексей Игоревич",{"$f":"$O$20","v":"Муниципальное бюджетное общеобразовательное учреждение \"Средняя общеобразовательная школа № 27 с углубленным изучением отдельных предметов\" Нижнекамского муниципального района  Республики Татарстан"}]
[21,"Шамсутдинова","Арина","Ринатовна","2006-12-21","ж","нет",{"$f":"H21","v":9},{"$f":"I21","v":9},0,{"$f":"$K$21","v":30},"участник","нет",{"$f":"$N$21","v":"Юртаев Алексей Игоревич"},"Муниципальное бюджетное общеобразовательное учреждение \"Средняя общеобразовательная школа № 27 с углубленным изучением отдельных предметов\" Нижнекамского муниципального района  Республики Татарстан"]
[22,"Никитина","Софья","Васильевна","2006-12-24","ж","нет",9,9,5,30,"участник","нет","Юртаев Алексей Игоревич","Муниципальное бюджетное общеобразовательное учреждение \"Средняя общеобразовательная школа № 27 с углубленным изучением отдельных предметов\" Нижнекамского муниципального района  Республики Татарстан"]
[23,"Петрова","Александра","Эдуардовна","2007-09-23","ж","нет",9,9,7,30,"участник","нет","Юртаев Алексей Игоревич","Муниципальное бюджетное общеобразовательное учреждение \"Средняя общеобразовательная школа № 27 с углубленным изучением отдельных предметов\" Нижнекамского муниципального района  Республики Татарстан"]
[24,"Мельникова","Валерия","Артемовна",{"$f":"[2]шаблон!$M$836","v":"01.09.2007"},"ж","нет",9,9,5,30,"участник","нет","Юртаев Алексей Игоревич","Муниципальное бюджетное общеобразовательное учреждение \"Средняя общеобразовательная школа № 27 с углубленным изучением отдельных предметов\" Нижнекамского муниципального района  Республики Татарстан"]
[25,"Сизанов","Кирилл","Олегович","2007-05-29","м","нет",9,9,2,30,"участник","нет","Юртаев Алексей Игоревич","Муниципальное бюджетное общеобразовательное учреждение \"Средняя общеобразовательная школа № 27 с углубленным изучением отдельных предметов\" Нижнекамского муниципального района  Республики Татарстан"]
[26,"Горшунова","Арина","Александровна",{"$f":"[2]шаблон!$M$831","v":"28.04.2007"},"ж","нет",9,9,3,30,"участник","нет","Юртаев Алексей Игоревич","Муниципальное бюджетное общеобразовательное учреждение \"Средняя общеобразовательная школа № 27 с углубленным изучением отдельных предметов\" Нижнекамского муниципального района  Республики Татарстан"]
[27,"Молотков","Герман","Вячеславович","2007-02-14","м","нет",9,9,7,30,"участник","нет","Юртаев Алексей Игоревич","Муниципальное бюджетное общеобразовательное учреждение \"Средняя общеобразовательная школа № 27 с углубленным изучением отдельных предметов\" Нижнекамского муниципального района  Республики Татарстан"]
[28,"Яшманов","Евгений","Алексеевич","2007-08-21","м","нет",9,9,2,30,"участник","нет","Юртаев Алексей Игоревич","Муниципальное бюджетное общеобразовательное учреждение \"Средняя общеобразовательная школа № 27 с углубленным изучением отдельных предметов\" Нижнекамского муниципального района  Республики Татарстан"]
[29,"Миндубаев","Нияз","Наилевич","2007-08-25","м","нет",9,9,6,30,"участник","нет","Юртаев Алексей Игоревич","Муниципальное бюджетное общеобразовательное учреждение \"Средняя общеобразовательная школа № 27 с углубленным изучением отдельных предметов\" Нижнекамского муниципального района  Республики Татарстан"]
[30,"Синявина","Кира","Владиславовна","2007-08-11","ж","нет",9,9,8,30,"участник","нет","Юртаев Алексей Игоревич","Муниципальное бюджетное общеобразовательное учреждение \"Средняя общеобразовательная школа № 27 с углубленным изучением отдельных предметов\" Нижнекамского муниципального района  Республики Татарстан"]
[31,"Силантьев","Кирилл","Андреевич","2007-05-25","м","нет",9,9,7,30,"участник","нет","Юртаев Алексей Игоревич","Муниципальное бюджетное общеобразовательное учреждение \"Средняя общеобразовательная школа № 27 с углубленным изучением отдельных предметов\" Нижнекамского муниципального района  Республики Татарстан"]
[32,"Ахметзянова","Диляра","Анасовна","2007-02-01","ж","нет",9,9,3,30,"участник","нет","Юртаев Алексей Игоревич","Муниципальное бюджетное общеобразовательное учреждение \"Средняя общеобразовательная школа № 27 с углубленным изучением отдельных предметов\" Нижнекамского муниципального района  Республики Татарстан"]
[33,"Колчерина","Юлия","Александровна","2008-07-22","ж","нет",9,9,21,30,"победитель","нет","Юртаев Алексей Игоревич","Муниципальное бюджетное общеобразовательное учреждение \"Средняя общеобразовательная школа № 27 с углубленным изучением отдельных предметов\" Нижнекамского муниципального района  Республики Татарстан"]
[34,"Рыбина","Арина","Петровна","2007-07-12","ж","нет",9,9,7,30,{"$f":"$L$33","v":"участник"},"нет","Юртаев Алексей Игоревич","Муниципальное бюджетное общеобразовательное учреждение \"Средняя общеобразовательная школа № 27 с углубленным изучением отдельных предметов\" Нижнекамского муниципального района  Республики Татарстан"]
[35,"Зарипов","Айрат","Марселевич",{"$f":"[2]шаблон!$M$833","v":"01.02.2008"},"м","нет",9,9,13,30,"участник","нет","Юртаев Алексей Игоревич","Муниципальное бюджетное общеобразовательное учреждение \"Средняя общеобразовательная школа № 27 с углубленным изучением отдельных предметов\" Нижнекамского муниципального района  Республики Татарстан"]
[36,"Дмитриева","Маргарита","Юрьевна","2007-02-18","ж","нет",9,9,7,30,"участник","нет","Юртаев Алексей Игоревич","Муниципальное бюджетное общеобразовательное учреждение \"Средняя общеобразовательная школа № 27 с углубленным изучением отдельных предметов\" Нижнекамского муниципального района  Республики Татарстан"]
[37,"Маклаков","Дамир","Алексеевич","2006-11-12","м",{"$f":"$G$5","v":"нет"},9,9,15,30,"призер","нет","Юртаев Алексей Игоревич","Муниципальное бюджетное общеобразовательное учреждение \"Средняя общеобразовательная школа № 27 с углубленным изучением отдельных предметов\" Нижнекамского муниципального района  Республики Татарстан"]
[38,"Лапина","Дарья","Викторовна",{"$f":"[2]шаблон!$M$835","v":"17.05.2007"},"ж","нет",9,9,5,30,{"$f":"$L$33","v":"участник"},"нет","Юртаев Алексей Игоревич","Муниципальное бюджетное общеобразовательное учреждение \"Средняя общеобразовательная школа № 27 с углубленным изучением отдельных предметов\" Нижнекамского муниципального района  Республики Татарстан"]
[39,"Васильчак","Олеся","Евгеньевна",{"$f":"[2]шаблон!$M$830","v":"22.04.2007"},"ж","нет",9,9,7,30,"участник","нет","Юртаев Алексей Игоревич","Муниципальное бюджетное общеобразовательное учреждение \"Средняя общеобразовательная школа № 27 с углубленным изучением отдельных предметов\" Нижнекамского муниципального района  Республики Татарстан"]
[40,"Хасанов","Рузиля","Валерьевна","2007-11-09","м","нет",9,9,9,30,"участник","нет","Юртаев Алексей Игоревич","Муниципальное бюджетное общеобразовательное учреждение \"Средняя общеобразовательная школа № 27 с углубленным изучением отдельных предметов\" Нижнекамского муниципального района  Республики Татарстан"]
[41,"Уточкин","Сергей","Дмитриевич","2006-11-29","м","нет",9,9,12,30,"участник","нет","Юртаев Алексей Игоревич","Муниципальное бюджетное общеобразовательное учреждение \"Средняя общеобразовательная школа № 27 с углубленным изучением отдельных предметов\" Нижнекамского муниципального района  Республики Татарстан"]
[42,"Ханжина","Екатерина","Андреевна",{"$f":"[2]шаблон!$M$839","v":"17.08.2007"},"ж","нет",9,9,0,30,"участник","нет","Юртаев Алексей Игоревич","Муниципальное бюджетное общеобразовательное учреждение \"Средняя общеобразовательная школа № 27 с углубленным изучением отдельных предметов\" Нижнекамского муниципального района  Республики Татарстан"]
[43,"Перевозчиков","Артем","Сергеевич","2007-11-09","м","нет",9,9,9,30,"участник","нет","Юртаев Алексей Игоревич","Муниципальное бюджетное общеобразовательное учреждение \"Средняя общеобразовательная школа № 27 с углубленным изучением отдельных предметов\" Нижнекамского муниципального района  Республики Татарстан"]
[44,"Алиакберова","Диана","Марсовна","2007-10-26","ж","нет",9,9,7,30,"участник","нет","Юртаев Алексей Игоревич","Муниципальное бюджетное общеобразовательное учреждение \"Средняя общеобразовательная школа № 27 с углубленным изучением отдельных предметов\" Нижнекамского муниципального района  Республики Татарстан"]
[45,"Якупов","Данис","Вадимович","2007-09-18","м","нет",9,9,14,30,"участник","нет","Юртаев Алексей Игоревич","Муниципальное бюджетное общеобразовательное учреждение \"Средняя общеобразовательная школа № 27 с углубленным изучением отдельных предметов\" Нижнекамского муниципального района  Республики Татарстан"]
[46,"Архипова","Виктоиия","Валерьевна",{"$f":"[2]шаблон!$M$828","v":"2006-12-03"},"ж","нет",9,9,7,30,"участник","нет","Юртаев Алексей Игоревич","Муниципальное бюджетное общеобразовательное учреждение \"Средняя общеобразовательная школа № 27 с углубленным изучением отдельных предметов\" Нижнекамского муниципального района  Республики Татарстан"]
[47,"Костин","Семён","Витальевич","2007-03-15","м","нет",9,9,10,30,"участник","нет","Юртаев Алексей Игоревич","Муниципальное бюджетное общеобразовательное учреждение \"Средняя общеобразовательная школа № 27 с углубленным изучением отдельных предметов\" Нижнекамского муниципального района  Республики Татарстан"]
[48,"Харисова","Ралина","Раилевна","2007-12-10","ж",{"$f":"$G$48","v":"нет"},9,9,1,{"$f":"$K$48","v":30},"участник",{"$f":"$M$48","v":"нет"},{"$f":"$N$48","v":"Юртаев Алексей Игоревич"},{"$f":"$O$48","v":"Муниципальное бюджетное общеобразовательное учреждение \"Средняя общеобразовательная школа № 27 с углубленным изучением отдельных предметов\" Нижнекамского муниципального района  Республики Татарстан"}]
[49,"Мардамшина","Лейла","Ильнуровна","2006-12-20","ж","нет",9,9,5,30,"участник","нет","Юртаев Алексей Игоревич","Муниципальное бюджетное общеобразовательное учреждение \"Средняя общеобразовательная школа № 27 с углубленным изучением отдельных предметов\" Нижнекамского муниципального района  Республики Татарстан"]
[50,"Петрова","Александра","Эдуардовна",{"$f":"[2]шаблон!$M$880","v":"2007-09-23"},"ж","нет",9,9,9,30,"участник","нет","Юртаев Алексей Игоревич","Муниципальное бюджетное общеобразовательное учреждение \"Средняя общеобразовательная школа № 27 с углубленным изучением отдельных предметов\" Нижнекамского муниципального района  Республики Татарстан"]
[51,"Мухаметгалиева","Лилиана","Ленаровна","2007-06-20","ж","нет",9,9,2,30,"участник","нет","Юртаев Алексей Игоревич","Муниципальное бюджетное общеобразовательное учреждение \"Средняя общеобразовательная школа № 27 с углубленным изучением отдельных предметов\" Нижнекамского муниципального района  Республики Татарстан"]
[52,"Пискарёв","Всеволод","Иванович",{"$f":"[2]шаблон!$M$838","v":"07.01.2007"},"м","нет",9,9,2,30,"участник","нет","Юртаев Алексей Игоревич","Муниципальное бюджетное общеобразовательное учреждение \"Средняя общеобразовательная школа № 27 с углубленным изучением отдельных предметов\" Нижнекамского муниципального района  Республики Татарстан"]
[53,"Мирзаянова","Камилла","Фаритовна","2007-03-12","ж","нет",9,9,20,30,"призер","нет","Юртаев Алексей Игоревич","Муниципальное бюджетное общеобразовательное учреждение \"Средняя общеобразовательная школа № 27 с углубленным изучением отдельных предметов\" Нижнекамского муниципального района  Республики Татарстан"]
[54,"Долбилова","Анжела","Вячеславовна","2006-12-12","ж","нет",9,9,2,30,{"$f":"$L$45","v":"участник"},"нет","Юртаев Алексей Игоревич","Муниципальное бюджетное общеобразовательное учреждение \"Средняя общеобразовательная школа № 27 с углубленным изучением отдельных предметов\" Нижнекамского муниципального района  Республики Татарстан"]
[55,"Болтикова","Софья"," Александровна",{"$f":"[2]шаблон!$M$829","v":"2006-11-23"},"ж","нет",9,9,9,30,"участник","нет","Юртаев Алексей Игоревич","Муниципальное бюджетное общеобразовательное учреждение \"Средняя общеобразовательная школа № 27 с углубленным изучением отдельных предметов\" Нижнекамского муниципального района  Республики Татарстан"]
[56,"Гимадисламов","Амир","Ренатович","2006-12-01","м","нет",9,9,1,30,"участник","нет","Юртаев Алексей Игоревич","Муниципальное бюджетное общеобразовательное учреждение \"Средняя общеобразовательная школа № 27 с углубленным изучением отдельных предметов\" Нижнекамского муниципального района  Республики Татарстан"]
[57,"Ремеслова","Алина","Станиславовна","2007-09-26","ж","нет",9,9,6,30,"участник","нет","Юртаев Алексей Игоревич","Муниципальное бюджетное общеобразовательное учреждение \"Средняя общеобразовательная школа № 27 с углубленным изучением отдельных предметов\" Нижнекамского муниципального района  Республики Татарстан"]
[58,"Дементьева","Виктория","Евгеньевна","2007-06-18","ж","нет",9,9,5,30,"участник","нет","Юртаев Алексей Игоревич","Муниципальное бюджетное общеобразовательное учреждение \"Средняя общеобразовательная школа № 27 с углубленным изучением отдельных предметов\" Нижнекамского муниципального района  Республики Татарстан"]
[59,"Исламова","Анастасия","Олеговна","2006-04-07","ж","нет",10,10,27,{"$f":"$K$21","v":30},"победитель","нет",{"$f":"$N$11","v":"Гадиуллин Булат Наильевич"},{"$f":"$O$59","v":"Муниципальное бюджетное общеобразовательное учреждение \"Средняя общеобразовательная школа № 27 с углубленным изучением отдельных предметов\" Нижнекамского муниципального района  Республики Татарстан"}]
[60,"Пушканова","Арина","Руслановна","2006-01-24","ж","нет",10,{"$f":"$H$62","v":10},21,30,"призер","нет","Гадиуллин Булат Наильевич",{"$f":"$O$59","v":"Муниципальное бюджетное общеобразовательное учреждение \"Средняя общеобразовательная школа № 27 с углубленным изучением отдельных предметов\" Нижнекамского муниципального района  Республики Татарстан"}]
[61,"Гаврилов","Роман","Павлович","2006-01-25","м","нет",10,10,27,30,{"$f":"$L$60","v":"победитель"},"нет","Гадиуллин Булат Наильевич","Муниципальное бюджетное общеобразовательное учреждение \"Средняя общеобразовательная школа № 27 с углубленным изучением отдельных предметов\" Нижнекамского муниципального района  Республики Татарстан"]
[62,"Афанасьев","Артем","Павлович","2006-03-20","м","нет",10,10,25,30,"призер","нет","Гадиуллин Булат Наильевич","Муниципальное бюджетное общеобразовательное учреждение \"Средняя общеобразовательная школа № 27 с углубленным изучением отдельных предметов\" Нижнекамского муниципального района  Республики Татарстан"]
[63,"Петров","Дмитрий","Александрович","2006-01-29","м","нет",{"$f":"$H$62","v":10},10,27,30,{"$f":"$L$60","v":"победитель"},"нет","Гадиуллин Булат Наильевич","Муниципальное бюджетное общеобразовательное учреждение \"Средняя общеобразовательная школа № 27 с углубленным изучением отдельных предметов\" Нижнекамского муниципального района  Республики Татарстан"]
[64,"Паксялина","Дарья","Сергеевна","2006-06-11","ж","нет",10,10,27,30,{"$f":"$L$60","v":"победитель"},"нет","Гадиуллин Булат Наильевич","Муниципальное бюджетное общеобразовательное учреждение \"Средняя общеобразовательная школа № 27 с углубленным изучением отдельных предметов\" Нижнекамского муниципального района  Республики Татарстан"]
[65,"Коновнин","Даниил","Андреевич","2006-03-03","м","нет",10,10,2,30,"участник","нет","Гадиуллин Булат Наильевич","Муниципальное бюджетное общеобразовательное учреждение \"Средняя общеобразовательная школа № 27 с углубленным изучением отдельных предметов\" Нижнекамского муниципального района  Республики Татарстан"]
[66,"Богданова","Ульяна","Олеговна","2006-03-06","ж","нет",10,10,0,30,{"$f":"$L$58","v":"участник"},"нет","Гадиуллин Булат Наильевич","Муниципальное бюджетное общеобразовательное учреждение \"Средняя общеобразовательная школа № 27 с углубленным изучением отдельных предметов\" Нижнекамского муниципального района  Республики Татарстан"]
[67,"Сабирова","Регина","Сиреневна","2006-08-27","ж","нет",10,10,3,30,"участник","нет","Гадиуллин Булат Наильевич","Муниципальное бюджетное общеобразовательное учреждение \"Средняя общеобразовательная школа № 27 с углубленным изучением отдельных предметов\" Нижнекамского муниципального района  Республики Татарстан"]
[68,"Гильманов","Алмаз","Изаилевич","2006-04-14","м","нет",10,10,27,30,{"$f":"$L$60","v":"победитель"},"нет",{"$f":"$N$68","v":"Гадиуллин Булат Наильевич"},"Муниципальное бюджетное общеобразовательное учреждение \"Средняя общеобразовательная школа № 27 с углубленным изучением отдельных предметов\" Нижнекамского муниципального района  Республики Татарстан"]
[69,"Загериев ","Айрат","Ильдарович","2006-06-25","м","нет",10,10,19,30,"призер","нет","Гадиуллин Булат Наильевич","Муниципальное бюджетное общеобразовательное учреждение \"Средняя общеобразовательная школа № 27 с углубленным изучением отдельных предметов\" Нижнекамского муниципального района  Республики Татарстан"]
[70,"Ахметзянова","Амалия","Фирдависовна",{"$f":"[2]шаблон!$M$947","v":"2006-05-20"},"ж","нет",10,10,5,30,{"$f":"$L$58","v":"участник"},"нет","Гадиуллин Булат Наильевич","Муниципальное бюджетное общеобразовательное учреждение \"Средняя общеобразовательная школа № 27 с углубленным изучением отдельных предметов\" Нижнекамского муниципального района  Республики Татарстан"]
[71,"Косаева","Виктория","Николаевна","2004-11-24","ж","нет",11,11,14,30,{"$f":"$L$71","v":"участник"},{"$f":"$M$71","v":"нет"},{"$f":"$N$71","v":"Гадиуллин Булат Наильевич"},{"$f":"$O$71","v":"Муниципальное бюджетное общеобразовательное учреждение \"Средняя общеобразовательная школа № 27 с углубленным изучением отдельных предметов\" Нижнекамского муниципального района  Республики Татарстан"}]
[72,"Шубников","Тимур","Юрьевич","2005-07-06","м","нет",{"$f":"H72","v":11},{"$f":"I72","v":11},21,30,"призер","нет","Гадиуллин Булат Наильевич","Муниципальное бюджетное общеобразовательное учреждение \"Средняя общеобразовательная школа № 27 с углубленным изучением отдельных предметов\" Нижнекамского муниципального района  Республики Татарстан"]
[73,"Сорокин","Александр","Андреевич","2005-02-05","м","нет",11,11,4,30,{"$f":"$L$71","v":"участник"},"нет","Гадиуллин Булат Наильевич","Муниципальное бюджетное общеобразовательное учреждение \"Средняя общеобразовательная школа № 27 с углубленным изучением отдельных предметов\" Нижнекамского муниципального района  Республики Татарстан"]
[74,"Тюрикова","Ольга","Евгеньевна","2005-08-18","ж","нет",11,11,1,30,"участник","нет","Гадиуллин Булат Наильевич","Муниципальное бюджетное общеобразовательное учреждение \"Средняя общеобразовательная школа № 27 с углубленным изучением отдельных предметов\" Нижнекамского муниципального района  Республики Татарстан"]
[75,"Зиганшина","Азалия","Ленаровна","2005-03-13","ж","нет",11,11,6,30,"участник","нет","Гадиуллин Булат Наильевич","Муниципальное бюджетное общеобразовательное учреждение \"Средняя общеобразовательная школа № 27 с углубленным изучением отдельных предметов\" Нижнекамского муниципального района  Республики Татарстан"]
[76,"Подопрелов","Кирилл","Игоревич","2005-05-30","м",{"$f":"$G$76","v":"нет"},11,11,22,30,"призер","нет","Гадиуллин Булат Наильевич","Муниципальное бюджетное общеобразовательное учреждение \"Средняя общеобразовательная школа № 27 с углубленным изучением отдельных предметов\" Нижнекамского муниципального района  Республики Татарстан"]
[77,"Закиров","Адиль","Фаниярович","2004-10-31","м","нет",11,11,22,30,"призер","нет","Гадиуллин Булат Наильевич","Муниципальное бюджетное общеобразовательное учреждение \"Средняя общеобразовательная школа № 27 с углубленным изучением отдельных предметов\" Нижнекамского муниципального района  Республики Татарстан"]
[78,"Моисеев","Семен","Павлович","2004-12-01","м","нет",11,11,15,{"$f":"$K$78","v":30},"призер","нет","Гадиуллин Булат Наильевич","Муниципальное бюджетное общеобразовательное учреждение \"Средняя общеобразовательная школа № 27 с углубленным изучением отдельных предметов\" Нижнекамского муниципального района  Республики Татарстан"]
[79,"Федченко","Роман","Владимирович","2005-08-01","м","нет",11,11,0,30,{"$f":"$L$71","v":"участник"},"нет","Гадиуллин Булат Наильевич","Муниципальное бюджетное общеобразовательное учреждение \"Средняя общеобразовательная школа № 27 с углубленным изучением отдельных предметов\" Нижнекамского муниципального района  Республики Татарстан"]
[80,"Майоров","Артур","Александрович","2005-01-05","м","нет",11,11,15,30,{"$f":"$L$78","v":"призер"},"нет","Гадиуллин Булат Наильевич","Муниципальное бюджетное общеобразовательное учреждение \"Средняя общеобразовательная школа № 27 с углубленным изучением отдельных предметов\" Нижнекамского муниципального района  Республики Татарстан"]
[81,"Багаманов","Ильхам","Алмазович","2005-05-18","м","нет",11,11,19,30,{"$f":"$L$78","v":"призер"},"нет","Гадиуллин Булат Наильевич","Муниципальное бюджетное общеобразовательное учреждение \"Средняя общеобразовательная школа № 27 с углубленным изучением отдельных предметов\" Нижнекамского муниципального района  Республики Татарстан"]
[82,"Степанов","Иван","Игоревич","2005-04-04","м","нет",11,11,22,30,"призер","нет","Гадиуллин Булат Наильевич","Муниципальное бюджетное общеобразовательное учреждение \"Средняя общеобразовательная школа № 27 с углубленным изучением отдельных предметов\" Нижнекамского муниципального района  Республики Татарстан"]
[83,"Гурлев","Семен","Владимирович","2005-04-22","м","нет",11,11,30,30,"победитель","нет","Гадиуллин Булат Наильевич","Муниципальное бюджетное общеобразовательное учреждение \"Средняя общеобразовательная школа № 27 с углубленным изучением отдельных предметов\" Нижнекамского муниципального района  Республики Татарстан"]
[84,"Емелина","София","Сергеевна","2005-08-22","ж","нет",11,11,30,30,{"$f":"$L$84","v":"победитель"},"нет","Гадиуллин Булат Наильевич","Муниципальное бюджетное общеобразовательное учреждение \"Средняя общеобразовательная школа № 27 с углубленным изучением отдельных предметов\" Нижнекамского муниципального района  Республики Татарстан"]
[85,"Толкачев","Артемий","Александрович","2005-03-27","м","нет",11,11,25,30,"призер","нет","Гадиуллин Булат Наильевич","Муниципальное бюджетное общеобразовательное учреждение \"Средняя общеобразовательная школа № 27 с углубленным изучением отдельных предметов\" Нижнекамского муниципального района  Республики Татарстан"]
[86,"Бочкарева","Амина","Алексеевна","2005-12-21","ж","нет",11,11,30,30,"победитель","нет","Гадиуллин Булат Наильевич","Муниципальное бюджетное общеобразовательное учреждение \"Средняя общеобразовательная школа № 27 с углубленным изучением отдельных предметов\" Нижнекамского муниципального района  Республики Татарстан"]
[87,"Нургалиев","Тимур","Айратович","2005-08-03","м","нет",11,11,0,30,{"$f":"$L$71","v":"участник"},"нет","Гадиуллин Булат Наильевич","Муниципальное бюджетное общеобразовательное учреждение \"Средняя общеобразовательная школа № 27 с углубленным изучением отдельных предметов\" Нижнекамского муниципального района  Республики Татарстан"]
[88,"Багманов","Артур","Николаевич","2005-05-08","м","нет",11,11,30,30,{"$f":"$L$84","v":"победитель"},"нет","Гадиуллин Булат Наильевич","Муниципальное бюджетное общеобразовательное учреждение \"Средняя общеобразовательная школа № 27 с углубленным изучением отдельных предметов\" Нижнекамского муниципального района  Республики Татарстан"]
[89,"Фомина","Валерия","Олеговна","2005-08-30","ж","нет",11,11,30,30,{"$f":"$L$84","v":"победитель"},"нет","Гадиуллин Булат Наильевич","Муниципальное бюджетное общеобразовательное учреждение \"Средняя общеобразовательная школа № 27 с углубленным изучением отдельных предметов\" Нижнекамского муниципального района  Республики Татарстан"]